[Event "Live Chess"]
[Site "Chess.com"]
[Date "2024.06.02"]
[Round "-"]
[White "MaximKovalenko83"]
[Black "degringolade64"]
[Result "1-0"]
[WhiteElo "2184"]
[BlackElo "2074"]
[TimeControl "300"]
[EndTime "8:47:41 PDT"]
[Termination "MaximKovalenko83 won by resignation"]

1. e4 {[%clk 0:04:57.5]} 1... e5 {[%clk 0:04:57.9]} 2. f4 {[%clk 0:04:55.6]}
2... Nc6 {[%clk 0:04:57.4]} 3. Nf3 {[%clk 0:04:53.7]} 3... exf4 {[%clk 0:04:55]}
4. d4 {[%clk 0:04:52.4]} 4... g5 {[%clk 0:04:53.5]} 5. c3 {[%clk 0:04:50]} 5...
d6 {[%clk 0:04:50.3]} 6. Bc4 {[%clk 0:04:47.2]} 6... h6 {[%clk 0:04:44.2]} 7.
O-O {[%clk 0:04:45.8]} 7... Bg7 {[%clk 0:04:42.5]} 8. Qe1 {[%clk 0:04:43.8]}
8... Qe7 {[%clk 0:04:32.4]} 9. Nbd2 {[%clk 0:04:39]} 9... Bd7 {[%clk 0:04:28.1]}
10. b4 {[%clk 0:04:35.7]} 10... O-O-O {[%clk 0:04:09.9]} 11. a4 {[%clk
0:04:33.8]} 11... f5 {[%clk 0:04:04.3]} 12. a5 {[%clk 0:04:22.1]} 12... Nf6
{[%clk 0:03:58.5]} 13. e5 {[%clk 0:04:16.8]} 13... dxe5 {[%clk 0:03:56.4]} 14.
dxe5 {[%clk 0:04:14.6]} 14... Ng4 {[%clk 0:03:53.7]} 15. e6 {[%clk 0:04:12.5]}
15... Be8 {[%clk 0:03:50.3]} 16. Nb3 {[%clk 0:04:10]} 16... Nxb4 {[%clk
0:03:16]} 17. Ba3 {[%clk 0:04:03.3]} 17... c5 {[%clk 0:03:13.5]} 18. cxb4 {[%clk
0:03:56.6]} 18... Bxa1 {[%clk 0:03:10.8]} 19. Qxa1 {[%clk 0:03:53.4]} 19... Ne3
{[%clk 0:03:05.9]} 20. Rc1 {[%clk 0:03:44.1]} 20... Bh5 {[%clk 0:02:59]} 21.
Nxc5 {[%clk 0:03:39.3]} 21... Bxf3 {[%clk 0:02:49.9]} 22. gxf3 {[%clk
0:03:38.8]} 22... Kb8 {[%clk 0:02:44.1]} 23. Qe5+ {[%clk 0:03:24.2]} 23... Qd6
{[%clk 0:02:39.4]} 24. Nd7+ {[%clk 0:03:20.5]} 24... Rxd7 {[%clk 0:02:24.3]} 25.
Qxh8+ {[%clk 0:03:18.3]} 25... Kc7 {[%clk 0:02:23.3]} 26. Bb5+ {[%clk
0:03:09.8]} 26... Qc6 {[%clk 0:02:15]} 27. Bxc6 {[%clk 0:03:08.6]} 1-0

[Event "Live Chess"]
[Site "Chess.com"]
[Date "2024.06.02"]
[Round "-"]
[White "KyryloPoluliakh"]
[Black "BigAl"]
[Result "0-1"]
[WhiteElo "1531"]
[BlackElo "2539"]
[TimeControl "300"]
[EndTime "8:47:54 PDT"]
[Termination "BigAl won by resignation"]

1. c4 {[%clk 0:04:56.4]} 1... Nf6 {[%clk 0:04:58.8]} 2. Nc3 {[%clk 0:04:54.8]}
2... g6 {[%clk 0:04:58.3]} 3. g3 {[%clk 0:04:52.5]} 3... Bg7 {[%clk 0:04:56.8]}
4. Bg2 {[%clk 0:04:50.9]} 4... O-O {[%clk 0:04:56.7]} 5. e3 {[%clk 0:04:49.1]}
5... d6 {[%clk 0:04:55.1]} 6. d4 {[%clk 0:04:47.6]} 6... Nbd7 {[%clk 0:04:53.1]}
7. Nge2 {[%clk 0:04:43.1]} 7... e5 {[%clk 0:04:52.4]} 8. O-O {[%clk 0:04:31]}
8... h5 {[%clk 0:04:51.1]} 9. h4 {[%clk 0:04:25.3]} 9... Re8 {[%clk 0:04:48.8]}
10. b3 {[%clk 0:04:18.8]} 10... Ng4 {[%clk 0:04:43.6]} 11. Bb2 {[%clk 0:04:13]}
11... g5 {[%clk 0:04:42.3]} 12. hxg5 {[%clk 0:03:53.6]} 12... Qxg5 {[%clk
0:04:40.4]} 13. Ne4 {[%clk 0:03:44.3]} 13... Qg6 {[%clk 0:04:38.9]} 14. f3
{[%clk 0:03:21.5]} 14... Nxe3 {[%clk 0:04:37.4]} 15. Qd3 {[%clk 0:03:16]} 15...
Nxf1 {[%clk 0:04:35.3]} 16. Rxf1 {[%clk 0:03:15.2]} 16... exd4 {[%clk
0:04:23.2]} 17. Nxd4 {[%clk 0:03:09.7]} 17... Nc5 {[%clk 0:04:19]} 18. Nxc5
{[%clk 0:03:06.6]} 18... dxc5 {[%clk 0:04:17.2]} 19. Qxg6 {[%clk 0:03:04.9]}
19... fxg6 {[%clk 0:04:16]} 0-1

[Event "Live Chess"]
[Site "Chess.com"]
[Date "2024.06.02"]
[Round "-"]
[White "GerardATHart"]
[Black "Ninifu"]
[Result "1-0"]
[WhiteElo "1411"]
[BlackElo "1991"]
[TimeControl "300"]
[EndTime "8:48:09 PDT"]
[Termination "GerardATHart won by resignation"]

1. e4 {[%clk 0:04:57.2]} 1... d5 {[%clk 0:04:58.7]} 2. exd5 {[%clk 0:04:53.3]}
2... Nf6 {[%clk 0:04:57.1]} 3. d4 {[%clk 0:04:51.7]} 3... Bg4 {[%clk 0:04:55.6]}
4. Be2 {[%clk 0:04:45.2]} 4... Bxe2 {[%clk 0:04:54]} 5. Nxe2 {[%clk 0:04:44.9]}
5... Qxd5 {[%clk 0:04:53.4]} 6. Nbc3 {[%clk 0:04:40.5]} 6... Qh5 {[%clk
0:04:51.9]} 7. O-O {[%clk 0:04:36.3]} 7... Nc6 {[%clk 0:04:51]} 8. h3 {[%clk
0:04:22.4]} 8... O-O-O {[%clk 0:04:46.6]} 9. Be3 {[%clk 0:04:20.7]} 9... e5
{[%clk 0:04:44.8]} 10. a3 {[%clk 0:03:52.6]} 10... exd4 {[%clk 0:04:33.1]} 11.
Nxd4 {[%clk 0:03:49.7]} 11... Qxd1 {[%clk 0:04:31.5]} 12. Raxd1 {[%clk
0:03:46.7]} 12... Ne5 {[%clk 0:04:24.9]} 13. Ndb5 {[%clk 0:03:35.1]} 13... Nc6
{[%clk 0:03:42.5]} 14. Rxd8+ {[%clk 0:03:23.8]} 14... Kxd8 {[%clk 0:03:39.7]}
15. Rd1+ {[%clk 0:03:23.2]} 15... Kc8 {[%clk 0:03:35.6]} 16. Bf4 {[%clk
0:03:20]} 16... a6 {[%clk 0:02:47.5]} 17. Nxc7 {[%clk 0:03:14.8]} 17... Bc5
{[%clk 0:02:43.7]} 18. N7d5 {[%clk 0:03:04.2]} 18... Nxd5 {[%clk 0:02:33.7]} 19.
Nxd5 {[%clk 0:03:01.5]} 19... Nd4 {[%clk 0:02:28.2]} 20. c3 {[%clk 0:02:50.2]}
20... Ne2+ {[%clk 0:02:15.7]} 21. Kf1 {[%clk 0:02:45.2]} 21... Nxf4 {[%clk
0:02:13.5]} 22. Nxf4 {[%clk 0:02:43.4]} 22... Re8 {[%clk 0:02:11.8]} 23. Re1
{[%clk 0:02:31]} 23... Rd8 {[%clk 0:02:08.8]} 24. Re5 {[%clk 0:02:06.1]} 24...
Bd6 {[%clk 0:01:57.5]} 25. Re4 {[%clk 0:02:03.9]} 25... Bc5 {[%clk 0:01:40.2]}
26. Rc4 {[%clk 0:01:59.1]} 26... b6 {[%clk 0:01:12.7]} 27. b4 {[%clk 0:01:57.3]}
27... Kb7 {[%clk 0:01:04.3]} 28. bxc5 {[%clk 0:01:55.4]} 28... bxc5 {[%clk
0:01:01.5]} 29. Rxc5 {[%clk 0:01:54.1]} 29... Rd2 {[%clk 0:00:59.2]} 30. Ke1
{[%clk 0:01:47.7]} 30... Ra2 {[%clk 0:00:55.9]} 31. Nd5 {[%clk 0:01:36.3]} 31...
Rxa3 {[%clk 0:00:46.7]} 32. Rc7+ {[%clk 0:01:34.4]} 32... Kb8 {[%clk 0:00:45.5]}
33. Rxf7 {[%clk 0:01:32.5]} 33... Ra5 {[%clk 0:00:43.3]} 34. Ne3 {[%clk
0:01:25.8]} 34... Rc5 {[%clk 0:00:39.3]} 35. Kd2 {[%clk 0:01:21.5]} 35... a5
{[%clk 0:00:38.4]} 36. Rxg7 {[%clk 0:01:19.3]} 36... a4 {[%clk 0:00:36.9]} 37.
Rxh7 {[%clk 0:01:17.4]} 37... a3 {[%clk 0:00:35.4]} 38. Rh4 {[%clk 0:01:10.9]}
38... Ra5 {[%clk 0:00:30.1]} 39. Nc2 {[%clk 0:01:09]} 39... a2 {[%clk
0:00:29.2]} 40. Rb4+ {[%clk 0:01:06.3]} 40... Kc7 {[%clk 0:00:27.2]} 41. Na1
{[%clk 0:00:48.8]} 41... Kd6 {[%clk 0:00:25.4]} 42. Rb2 {[%clk 0:00:46.9]} 42...
Kd5 {[%clk 0:00:23]} 43. Kc2 {[%clk 0:00:45.6]} 43... Kc4 {[%clk 0:00:20.2]} 44.
f4 {[%clk 0:00:41.6]} 44... Rf5 {[%clk 0:00:15.5]} 45. g4 {[%clk 0:00:38.3]}
45... Rxf4 {[%clk 0:00:14.1]} 46. Rb4+ {[%clk 0:00:37]} 1-0

[Event "Live Chess"]
[Site "Chess.com"]
[Date "2024.06.02"]
[Round "-"]
[White "Colm_Buckley"]
[Black "juniortay"]
[Result "0-1"]
[WhiteElo "1891"]
[BlackElo "2248"]
[TimeControl "300"]
[EndTime "8:48:22 PDT"]
[Termination "juniortay won on time"]

1. d4 {[%clk 0:04:57.1]} 1... Nf6 {[%clk 0:04:58.4]} 2. c4 {[%clk 0:04:55.4]}
2... e5 {[%clk 0:04:12.9]} 3. dxe5 {[%clk 0:04:49.6]} 3... Ng4 {[%clk
0:04:11.5]} 4. Nf3 {[%clk 0:04:47.2]} 4... Bc5 {[%clk 0:04:09.6]} 5. e3 {[%clk
0:04:34.9]} 5... Nc6 {[%clk 0:04:07.9]} 6. Nc3 {[%clk 0:04:28.8]} 6... O-O
{[%clk 0:04:06.2]} 7. Be2 {[%clk 0:04:22.4]} 7... a5 {[%clk 0:04:04.8]} 8. O-O
{[%clk 0:04:19.7]} 8... Ngxe5 {[%clk 0:04:03.7]} 9. b3 {[%clk 0:04:11.5]} 9...
Nxf3+ {[%clk 0:04:01.6]} 10. Bxf3 {[%clk 0:04:09.7]} 10... Ne5 {[%clk
0:04:01.5]} 11. Bb2 {[%clk 0:04:04.7]} 11... Ra6 {[%clk 0:03:55.1]} 12. Be4
{[%clk 0:03:39.6]} 12... Rh6 {[%clk 0:03:47.8]} 13. g3 {[%clk 0:03:15]} 13... d6
{[%clk 0:03:43.7]} 14. Nd5 {[%clk 0:03:01.4]} 14... Bg4 {[%clk 0:03:30.8]} 15.
f3 {[%clk 0:02:48.1]} 15... Bxe3+ {[%clk 0:03:28]} 16. Nxe3 {[%clk 0:02:40.5]}
16... Bh3 {[%clk 0:03:24.1]} 17. Rf2 {[%clk 0:02:36.4]} 17... Qg5 {[%clk
0:03:19.9]} 18. Bxe5 {[%clk 0:02:24.5]} 18... dxe5 {[%clk 0:03:13]} 19. Ng4
{[%clk 0:02:11.4]} 19... Bxg4 {[%clk 0:03:03.7]} 20. fxg4 {[%clk 0:02:07]} 20...
Qe3 {[%clk 0:03:02.1]} 21. Qd3 {[%clk 0:02:02.5]} 21... Qb6 {[%clk 0:02:57.2]}
22. Kg2 {[%clk 0:01:50.4]} 22... Rxh2+ {[%clk 0:02:54.8]} 23. Kxh2 {[%clk
0:01:45.8]} 23... Qxf2+ {[%clk 0:02:53]} 24. Kh3 {[%clk 0:01:44.7]} 24... g6
{[%clk 0:02:51.3]} 25. Rf1 {[%clk 0:01:38.4]} 25... Qxa2 {[%clk 0:02:48.4]} 26.
Bxb7 {[%clk 0:01:34.2]} 26... Rb8 {[%clk 0:02:29.6]} 27. Qd5 {[%clk 0:01:23.3]}
27... Rf8 {[%clk 0:02:20.3]} 28. Qxe5 {[%clk 0:01:11.9]} 28... Qxb3 {[%clk
0:02:12.9]} 29. Bd5 {[%clk 0:01:10.4]} 29... Qb8 {[%clk 0:01:49.9]} 30. Qe7
{[%clk 0:01:00.8]} 30... Qd8 {[%clk 0:01:17.5]} 31. Bxf7+ {[%clk 0:00:54.7]}
31... Kg7 {[%clk 0:01:14.7]} 32. Qe5+ {[%clk 0:00:46.5]} 32... Kh6 {[%clk
0:01:07.8]} 33. Kg2 {[%clk 0:00:22.2]} 33... Qd2+ {[%clk 0:00:52.6]} 34. Rf2
{[%clk 0:00:18.4]} 34... Qd1 {[%clk 0:00:45.3]} 35. g5+ {[%clk 0:00:15.3]} 35...
Kh5 {[%clk 0:00:44.1]} 36. Qf4 {[%clk 0:00:12.4]} 36... Qg4 {[%clk 0:00:37.7]}
37. Qxg4+ {[%clk 0:00:09.9]} 37... Kxg4 {[%clk 0:00:35.7]} 38. Be6+ {[%clk
0:00:08.5]} 38... Rf5 {[%clk 0:00:31.6]} 39. Bxf5+ {[%clk 0:00:06.8]} 39... gxf5
{[%clk 0:00:30.5]} 40. Ra2 {[%clk 0:00:05.5]} 40... Kxg5 {[%clk 0:00:27.9]} 41.
Rxa5 {[%clk 0:00:05]} 41... h5 {[%clk 0:00:27.8]} 42. Rc5 {[%clk 0:00:04.4]}
42... c6 {[%clk 0:00:26]} 43. Rxc6 {[%clk 0:00:03.5]} 43... Kg4 {[%clk
0:00:24.5]} 44. Rc5 {[%clk 0:00:02.6]} 44... h4 {[%clk 0:00:21.2]} 45. gxh4
{[%clk 0:00:00.9]} 45... f4 {[%clk 0:00:21.1]} 0-1

[Event "Live Chess"]
[Site "Chess.com"]
[Date "2024.06.02"]
[Round "-"]
[White "Karasyov2"]
[Black "PhilMaybury64"]
[Result "1-0"]
[WhiteElo "1315"]
[BlackElo "1489"]
[TimeControl "300"]
[EndTime "8:48:24 PDT"]
[Termination "Karasyov2 won on time"]

1. e4 {[%clk 0:04:59.1]} 1... e5 {[%clk 0:04:56.7]} 2. Nf3 {[%clk 0:04:58.3]}
2... d6 {[%clk 0:04:53.8]} 3. d4 {[%clk 0:04:54]} 3... Bg4 {[%clk 0:04:49.6]} 4.
dxe5 {[%clk 0:04:41.7]} 4... Nd7 {[%clk 0:04:44.7]} 5. exd6 {[%clk 0:04:36.1]}
5... Bxd6 {[%clk 0:04:42.3]} 6. Be2 {[%clk 0:04:32]} 6... Qe7 {[%clk 0:04:38.9]}
7. O-O {[%clk 0:04:27.9]} 7... Ngf6 {[%clk 0:04:35.1]} 8. Re1 {[%clk 0:04:16]}
8... O-O-O {[%clk 0:04:29.6]} 9. Nc3 {[%clk 0:04:07.3]} 9... a6 {[%clk
0:04:20.7]} 10. a3 {[%clk 0:03:59.3]} 10... Nc5 {[%clk 0:04:11.1]} 11. Nd5
{[%clk 0:03:44.6]} 11... Nxd5 {[%clk 0:03:58.7]} 12. exd5 {[%clk 0:03:43.3]}
12... Ne4 {[%clk 0:03:48.3]} 13. b4 {[%clk 0:03:30.4]} 13... Qf6 {[%clk
0:03:27.2]} 14. Rb1 {[%clk 0:03:20.7]} 14... Nc3 {[%clk 0:03:19.7]} 15. Qd3
{[%clk 0:03:16.5]} 15... Nxb1 {[%clk 0:03:15.1]} 16. Bg5 {[%clk 0:03:09.1]}
16... Qf5 {[%clk 0:02:43.1]} 17. Bxd8 {[%clk 0:02:54.4]} 17... Qxd3 {[%clk
0:02:32.9]} 18. cxd3 {[%clk 0:02:49.2]} 18... Nc3 {[%clk 0:02:28.1]} 19. Bh4
{[%clk 0:02:46.2]} 19... Re8 {[%clk 0:02:06.2]} 20. Kf1 {[%clk 0:02:38.1]} 20...
Nxe2 {[%clk 0:01:54.7]} 21. Rxe2 {[%clk 0:02:34.5]} 21... Rxe2 {[%clk
0:01:46.9]} 22. Kxe2 {[%clk 0:02:33.6]} 22... f6 {[%clk 0:01:41.1]} 23. h3
{[%clk 0:02:24.8]} 23... Bh5 {[%clk 0:01:38]} 24. g4 {[%clk 0:02:21.9]} 24...
Bf7 {[%clk 0:01:35.9]} 25. Nd4 {[%clk 0:02:11.8]} 25... Bxd5 {[%clk 0:01:24.6]}
26. Nf5 {[%clk 0:02:10]} 26... Bf8 {[%clk 0:01:21.8]} 27. Bg3 {[%clk 0:02:04.4]}
27... Kd7 {[%clk 0:01:19.6]} 28. Ke3 {[%clk 0:01:55.3]} 28... a5 {[%clk
0:01:15]} 29. bxa5 {[%clk 0:01:43.9]} 29... g6 {[%clk 0:01:10]} 30. Nd4 {[%clk
0:01:41.8]} 30... Bxa3 {[%clk 0:01:05.3]} 31. Nb5 {[%clk 0:01:40.9]} 31... Bd6
{[%clk 0:00:59.5]} 32. Nxd6 {[%clk 0:01:39]} 32... cxd6 {[%clk 0:00:56.7]} 33.
Kd4 {[%clk 0:01:37.3]} 33... Bc6 {[%clk 0:00:52.9]} 34. f4 {[%clk 0:01:31.9]}
34... Ke6 {[%clk 0:00:50.9]} 35. g5 {[%clk 0:01:28.7]} 35... f5 {[%clk 0:00:47]}
36. h4 {[%clk 0:01:27.3]} 36... Kd7 {[%clk 0:00:44.1]} 37. Be1 {[%clk
0:01:23.1]} 37... Kc8 {[%clk 0:00:39.6]} 38. Bb4 {[%clk 0:01:22]} 38... Kd7
{[%clk 0:00:36.4]} 39. Kc4 {[%clk 0:01:20.7]} 39... Bf3 {[%clk 0:00:31]} 40. Kb5
{[%clk 0:01:09.4]} 40... Ke6 {[%clk 0:00:24.2]} 41. Kb6 {[%clk 0:01:04.1]} 41...
Bc6 {[%clk 0:00:20.7]} 42. Kc7 {[%clk 0:01:02]} 42... Kd5 {[%clk 0:00:17.2]} 43.
Bxd6 {[%clk 0:00:57.1]} 43... Kd4 {[%clk 0:00:15.1]} 44. a6 {[%clk 0:00:53.3]}
44... Bf3 {[%clk 0:00:12.3]} 45. a7 {[%clk 0:00:50.1]} 45... b5 {[%clk
0:00:09.2]} 46. Kb8 {[%clk 0:00:47.2]} 46... Kxd3 {[%clk 0:00:04.7]} 47. a8=Q
{[%clk 0:00:45.7]} 47... Bxa8 {[%clk 0:00:03.4]} 48. Kxa8 {[%clk 0:00:45.4]}
48... Kc4 {[%clk 0:00:02.7]} 49. Kb7 {[%clk 0:00:43.1]} 49... b4 {[%clk
0:00:00.7]} 50. Bxb4 {[%clk 0:00:42.8]} 1-0

[Event "Live Chess"]
[Site "Chess.com"]
[Date "2024.06.02"]
[Round "-"]
[White "gobbles19"]
[Black "stevochess11"]
[Result "1-0"]
[WhiteElo "2245"]
[BlackElo "1706"]
[TimeControl "300"]
[EndTime "8:48:37 PDT"]
[Termination "gobbles19 won by checkmate"]

1. e4 {[%clk 0:04:58.7]} 1... c5 {[%clk 0:04:58.6]} 2. d4 {[%clk 0:04:58.1]}
2... g6 {[%clk 0:04:50.2]} 3. Bc4 {[%clk 0:04:55.7]} 3... Bg7 {[%clk 0:04:49.1]}
4. Nf3 {[%clk 0:04:54.6]} 4... cxd4 {[%clk 0:04:45.1]} 5. c3 {[%clk 0:04:54.3]}
5... Nf6 {[%clk 0:04:42.9]} 6. e5 {[%clk 0:04:52]} 6... Ng4 {[%clk 0:04:30.1]}
7. cxd4 {[%clk 0:04:51.2]} 7... h5 {[%clk 0:04:22.9]} 8. h3 {[%clk 0:04:49.2]}
8... Nh6 {[%clk 0:04:21.5]} 9. O-O {[%clk 0:04:42.2]} 9... Nf5 {[%clk
0:04:18.9]} 10. Nc3 {[%clk 0:04:41]} 10... Nc6 {[%clk 0:04:16.7]} 11. Re1 {[%clk
0:04:38.9]} 11... Qb6 {[%clk 0:04:13.4]} 12. d5 {[%clk 0:04:31.4]} 12... Ncd4
{[%clk 0:04:04.3]} 13. Nxd4 {[%clk 0:04:22.7]} 13... Nxd4 {[%clk 0:04:01.4]} 14.
Be3 {[%clk 0:04:21]} 14... Bxe5 {[%clk 0:03:57.2]} 15. Na4 {[%clk 0:04:18.6]}
15... Qb4 {[%clk 0:03:51.9]} 16. Bxd4 {[%clk 0:04:16.3]} 16... Bxd4 {[%clk
0:03:46.4]} 17. Qxd4 {[%clk 0:04:16.2]} 17... Qxa4 {[%clk 0:03:45.4]} 18. Qxh8#
{[%clk 0:04:14.3]} 1-0

[Event "Live Chess"]
[Site "Chess.com"]
[Date "2024.06.02"]
[Round "-"]
[White "JohanKjeldahl"]
[Black "upoe610"]
[Result "1-0"]
[WhiteElo "1831"]
[BlackElo "2152"]
[TimeControl "300"]
[EndTime "8:48:38 PDT"]
[Termination "JohanKjeldahl won by resignation"]

1. c4 {[%clk 0:04:56]} 1... c5 {[%clk 0:04:58.7]} 2. Nc3 {[%clk 0:04:54.5]} 2...
Nc6 {[%clk 0:04:57.8]} 3. Nf3 {[%clk 0:04:53.3]} 3... g6 {[%clk 0:04:57.1]} 4.
d4 {[%clk 0:04:52.4]} 4... cxd4 {[%clk 0:04:51.3]} 5. Nxd4 {[%clk 0:04:51.1]}
5... Bg7 {[%clk 0:04:50.6]} 6. e3 {[%clk 0:04:50.3]} 6... Nf6 {[%clk 0:04:49.4]}
7. Be2 {[%clk 0:04:49.4]} 7... O-O {[%clk 0:04:48]} 8. O-O {[%clk 0:04:49]} 8...
d6 {[%clk 0:04:42.3]} 9. b3 {[%clk 0:04:47.4]} 9... Nd7 {[%clk 0:04:39.5]} 10.
Bb2 {[%clk 0:04:45.6]} 10... Nxd4 {[%clk 0:04:36.2]} 11. exd4 {[%clk 0:04:43.3]}
11... Nf6 {[%clk 0:04:35.4]} 12. Bf3 {[%clk 0:04:39.6]} 12... Rb8 {[%clk
0:04:30.3]} 13. Re1 {[%clk 0:04:34.4]} 13... Be6 {[%clk 0:04:28.4]} 14. d5
{[%clk 0:04:32.4]} 14... Bf5 {[%clk 0:04:26.4]} 15. Nb5 {[%clk 0:04:27.9]} 15...
a6 {[%clk 0:04:23.6]} 16. Nd4 {[%clk 0:04:24.7]} 16... Bd7 {[%clk 0:04:21.7]}
17. Qd2 {[%clk 0:04:19.5]} 17... b5 {[%clk 0:04:20.8]} 18. Nc6 {[%clk
0:04:07.6]} 18... Bxc6 {[%clk 0:04:19.1]} 19. dxc6 {[%clk 0:04:06.2]} 19... bxc4
{[%clk 0:04:18.5]} 20. bxc4 {[%clk 0:04:01.4]} 20... Qc7 {[%clk 0:04:14.9]} 21.
Bxf6 {[%clk 0:03:57.2]} 21... Bxf6 {[%clk 0:04:12.7]} 22. Rab1 {[%clk
0:03:55.9]} 22... Rxb1 {[%clk 0:04:10.2]} 23. Rxb1 {[%clk 0:03:54.3]} 23... Rb8
{[%clk 0:04:10.1]} 24. Rb7 {[%clk 0:03:51.9]} 24... Rxb7 {[%clk 0:04:04.1]} 25.
cxb7 {[%clk 0:03:49.9]} 25... h5 {[%clk 0:03:59.6]} 26. Qb4 {[%clk 0:03:43.9]}
26... Qb8 {[%clk 0:03:58.4]} 27. Qb6 {[%clk 0:03:41.9]} 27... d5 {[%clk
0:03:55.2]} 28. Bxd5 {[%clk 0:03:36.9]} 28... Be5 {[%clk 0:03:54.5]} 29. Qxa6
{[%clk 0:03:31.5]} 29... Bxh2+ {[%clk 0:03:52]} 30. Kh1 {[%clk 0:03:25.5]} 30...
Bf4 {[%clk 0:03:51.9]} 31. Qa8 {[%clk 0:03:16.1]} 31... Kg7 {[%clk 0:03:49.6]}
32. a4 {[%clk 0:03:12.2]} 32... Qe5 {[%clk 0:03:44.4]} 33. g3 {[%clk 0:03:09.5]}
33... Qe1+ {[%clk 0:03:42.6]} 34. Kg2 {[%clk 0:03:06.8]} 34... h4 {[%clk
0:03:37]} 35. gxf4 {[%clk 0:02:57.4]} 35... h3+ {[%clk 0:03:35.7]} 36. Kxh3
{[%clk 0:02:53.5]} 36... Qf1+ {[%clk 0:03:32.6]} 37. Kg3 {[%clk 0:02:49.2]}
37... Qd3+ {[%clk 0:03:31.1]} 38. Bf3 {[%clk 0:02:46.8]} 38... g5 {[%clk
0:03:30.4]} 39. b8=Q {[%clk 0:02:42.9]} 39... g4 {[%clk 0:03:29.4]} 40. Qh8+
{[%clk 0:02:38.7]} 40... Kg6 {[%clk 0:03:28.2]} 41. Qag8+ {[%clk 0:02:31.3]}
41... Kf5 {[%clk 0:03:25.3]} 42. Qgh7+ {[%clk 0:02:29.4]} 1-0

[Event "Live Chess"]
[Site "Chess.com"]
[Date "2024.06.02"]
[Round "-"]
[White "StoreySniper"]
[Black "Queensandpawns"]
[Result "1-0"]
[WhiteElo "2479"]
[BlackElo "2241"]
[TimeControl "300"]
[EndTime "8:48:41 PDT"]
[Termination "StoreySniper won by checkmate"]

1. e4 {[%clk 0:04:58]} 1... e5 {[%clk 0:04:56.5]} 2. Nf3 {[%clk 0:04:54.2]} 2...
Nf6 {[%clk 0:04:56.4]} 3. Nxe5 {[%clk 0:04:52.2]} 3... Nc6 {[%clk 0:04:56]} 4.
Nxc6 {[%clk 0:04:46.6]} 4... dxc6 {[%clk 0:04:55.9]} 5. d3 {[%clk 0:04:44.6]}
5... Bc5 {[%clk 0:04:55.1]} 6. Be2 {[%clk 0:04:41.6]} 6... h5 {[%clk 0:04:53.3]}
7. c3 {[%clk 0:04:33]} 7... Bb6 {[%clk 0:04:52]} 8. Be3 {[%clk 0:04:28.5]} 8...
Bxe3 {[%clk 0:04:50.6]} 9. fxe3 {[%clk 0:04:28.4]} 9... Ng4 {[%clk 0:04:50.1]}
10. Bxg4 {[%clk 0:04:25.7]} 10... hxg4 {[%clk 0:04:50]} 11. g3 {[%clk
0:04:16.5]} 11... Qg5 {[%clk 0:04:44]} 12. Qe2 {[%clk 0:04:14.1]} 12... Be6
{[%clk 0:04:42.2]} 13. Nd2 {[%clk 0:04:09.1]} 13... O-O-O {[%clk 0:04:41.5]} 14.
a3 {[%clk 0:03:54.2]} 14... Qb5 {[%clk 0:04:38.7]} 15. d4 {[%clk 0:03:45.1]}
15... Qxb2 {[%clk 0:04:34.7]} 16. O-O {[%clk 0:03:41.7]} 16... Qxc3 {[%clk
0:04:29.6]} 17. Rfc1 {[%clk 0:03:40.6]} 17... Qa5 {[%clk 0:04:26.5]} 18. Rc5
{[%clk 0:03:39]} 18... Qa4 {[%clk 0:04:14.1]} 19. Rac1 {[%clk 0:03:31.6]} 19...
Qxa3 {[%clk 0:04:08.8]} 20. d5 {[%clk 0:03:25.4]} 20... cxd5 {[%clk 0:04:04.4]}
21. Rxc7+ {[%clk 0:03:23.7]} 21... Kb8 {[%clk 0:04:03.9]} 22. Rxb7+ {[%clk
0:03:20.6]} 22... Ka8 {[%clk 0:03:49.1]} 23. Rcb1 {[%clk 0:02:38.2]} 23... dxe4
{[%clk 0:03:29.2]} 24. Nf1 {[%clk 0:02:28.1]} 24... Rd3 {[%clk 0:02:02.8]} 25.
Qc2 {[%clk 0:02:20.3]} 25... Qa6 {[%clk 0:01:17.9]} 26. Qc7 {[%clk 0:02:07.5]}
26... Rdd8 {[%clk 0:01:15.2]} 27. Rxa7+ {[%clk 0:02:01.5]} 27... Qxa7 {[%clk
0:01:12.1]} 28. Qc6+ {[%clk 0:02:00.6]} 28... Qb7 {[%clk 0:01:11]} 29. Qxb7#
{[%clk 0:01:59.9]} 1-0

[Event "Live Chess"]
[Site "Chess.com"]
[Date "2024.06.02"]
[Round "-"]
[White "ZatixMajor"]
[Black "matt1979"]
[Result "0-1"]
[WhiteElo "2023"]
[BlackElo "1420"]
[TimeControl "300"]
[EndTime "8:48:43 PDT"]
[Termination "matt1979 won by resignation"]

1. c4 {[%clk 0:04:59.8]} 1... f5 {[%clk 0:04:56.9]} 2. g3 {[%clk 0:04:59.7]}
2... e6 {[%clk 0:04:55.4]} 3. Bg2 {[%clk 0:04:59.6]} 3... Nf6 {[%clk 0:04:54.5]}
4. Nc3 {[%clk 0:04:59.1]} 4... Nc6 {[%clk 0:04:52]} 5. e4 {[%clk 0:04:58.1]}
5... fxe4 {[%clk 0:04:50.7]} 6. Nxe4 {[%clk 0:04:56.6]} 6... Nxe4 {[%clk
0:04:49.3]} 7. Bxe4 {[%clk 0:04:56.5]} 7... Be7 {[%clk 0:04:43.7]} 8. Qh5+
{[%clk 0:04:54.4]} 8... Kf8 {[%clk 0:04:39.7]} 9. Nf3 {[%clk 0:04:40.8]} 9...
Qe8 {[%clk 0:04:37.2]} 10. Qg4 {[%clk 0:04:33.5]} 10... g6 {[%clk 0:04:28.6]}
11. b3 {[%clk 0:04:21.9]} 11... Bf6 {[%clk 0:04:25.2]} 12. Qf4 {[%clk
0:04:19.4]} 12... Kg7 {[%clk 0:04:21.9]} 13. Rb1 {[%clk 0:04:16.9]} 13... d6
{[%clk 0:04:18.2]} 14. d4 {[%clk 0:04:11.6]} 14... Nxd4 {[%clk 0:04:13.2]} 15.
Qh6+ {[%clk 0:04:02.9]} 15... Kf7 {[%clk 0:04:10.6]} 16. Ng5+ {[%clk 0:03:55.4]}
16... Bxg5 {[%clk 0:04:08.7]} 17. Qxg5 {[%clk 0:03:55.3]} 17... d5 {[%clk
0:04:00]} 18. Bb2 {[%clk 0:03:44.4]} 18... e5 {[%clk 0:03:50.4]} 19. Bxd5+
{[%clk 0:03:41.8]} 19... Be6 {[%clk 0:03:47.2]} 20. Bxe6+ {[%clk 0:03:28.4]}
20... Qxe6 {[%clk 0:03:38.4]} 21. Qe3 {[%clk 0:03:27.1]} 21... Nc2+ {[%clk
0:03:33.2]} 22. Ke2 {[%clk 0:03:26]} 22... Nxe3 {[%clk 0:03:31.9]} 23. fxe3
{[%clk 0:03:25.9]} 0-1